fUSD/lending_fUSD_20251230
["ID","MTS","AMOUNT","RATE_DAILY","PERIOD"]
[400094043,1767095432558,-201.84596773,0.00015522,2]
[400094044,1767095432570,-391.89198979,0.00015522,2]
[400094045,1767095432580,-157.64100285,0.00015522,2]
[400094046,1767095432589,-500.0,0.00015522,2]
[400094047,1767095432599,-495.27980032,0.00015522,2]
[400094048,1767095432610,-300.0,0.00015522,2]
[400094049,1767095432620,-14161.5191627,0.00015656,2]
[400094050,1767095432630,-1019.6760226,0.00015656,2]
[400094051,1767095432639,-12420.8634894,0.0001569,2]
[400094052,1767095432649,-177.6032133,0.0001569,2]
[400094053,1767095432659,-150.0,0.00015712,2]
[400094054,1767095432669,-2237.6636905,0.00015741,2]
[400094055,1767095432679,-750.55,0.00015762,2]
[400094056,1767095432689,-621.42,0.00015908,2]
[400094057,1767095432698,-166.66,0.00015966,2]
[400094058,1767095432708,-1003.91059731,0.00016002,2]
[400094059,1767095432718,-151.0,0.00016025,2]
[400094060,1767095432727,-151.0,0.00016025,2]
[400094061,1767095432737,-151.0,0.00016031,2]
[400094062,1767095432751,-151.0,0.00016031,2]
[400094063,1767095432761,-151.0,0.00016038,2]
[400094064,1767095432770,-151.0,0.00016038,2]
[400094065,1767095432780,-151.0,0.00016041,2]
[400094066,1767095432789,-151.0,0.00016041,2]
[400094067,1767095432800,-150.0,0.00016137,2]
[400094068,1767095432809,-150.0,0.00016137,2]
[400094069,1767095432818,-150.0,0.00016137,2]
[400094070,1767095432828,-150.0,0.00016137,2]
[400094071,1767095432839,-317.85411109,0.00016188,2]
[400094072,1767095432849,-847.17668647,0.00016188,2]
[400094073,1767095432860,-553.64373807,0.00016188,2]
[400094074,1767095432870,-500.0,0.00016188,2]
[400094075,1767095432879,-500.0,0.00016188,2]
[400094076,1767095432890,-500.0,0.00016188,2]
[400094077,1767095432900,-438.08914091,0.00016188,2]
[400094078,1767095432910,-323.38,0.00016188,2]
[400094079,1767095432920,-500.0,0.00016201,2]
[400094080,1767095432930,-500.0,0.00016438,2]
[400094081,1767095432939,-500.0,0.00016438,2]
[400094082,1767095432950,-500.0,0.00016438,2]
[400094083,1767095432959,-500.0,0.00016438,2]
[400094084,1767095432969,-441.35553197,0.00016438,2]
[400094085,1767095432979,-500.0,0.00016438,2]
[400094086,1767095432990,-500.0,0.00016438,2]
[400094087,1767095433001,-500.0,0.00016438,2]
[400094088,1767095433011,-500.0,0.00016438,2]
[400094089,1767095433021,-500.0,0.00016438,2]
[400094090,1767095433031,-500.0,0.00016438,2]
[400094091,1767095433041,-500.0,0.00016438,2]
[400094092,1767095433051,-500.0,0.00016438,2]
[400094093,1767095433061,-500.0,0.00016438,2]
[400094094,1767095433071,-500.0,0.00016438,2]
[400094095,1767095433081,-500.0,0.00016438,2]
[400094096,1767095433091,-2674.08,0.00016438,2]
[400094097,1767095433102,-2023.73906348,0.00016438,2]
[400094098,1767095433116,-650.27789233,0.00016438,2]
[400094099,1767095433127,-323.38,0.00016462,2]
[400094100,1767095433137,-150.0,0.00016562,2]
[400094101,1767095433147,-5450.68421725,0.00016582,2]
[400094102,1767095433158,-166.66,0.00016625,2]
[400094103,1767095433167,-450.0,0.00016639,2]
[400094104,1767095433177,-150.0,0.00016699,2]
[400094105,1767095433187,-150.0,0.00016699,2]
[400094106,1767095433197,-150.0,0.00016699,2]
[400094107,1767095433207,-150.0,0.00016699,2]
[400094108,1767095433217,-150.0,0.00016699,2]
[400094109,1767095433227,-150.0,0.00016699,2]
[400094110,1767095433237,-323.38,0.00016736,2]
[400094111,1767095433247,-150.0,0.00016754,2]
[400094112,1767095433257,-204.22488612,0.00016754,2]
[400094113,1767095433267,-150.0,0.00016754,2]
[400094114,1767095433277,-150.0,0.00016754,2]
[400094115,1767095433286,-150.0,0.00016809,2]
[400094116,1767095433296,-150.0,0.00016809,2]
[400094117,1767095433306,-150.0,0.00016863,2]
[400094118,1767095433315,-150.0,0.00016863,2]
[400094119,1767095433325,-169.74465732,0.000169,2]
[400094120,1767095433335,-846.66132283,0.000169,2]
[400094121,1767095433345,-205.97165468,0.000169,2]
[400094122,1767095433355,-150.0,0.00016918,2]
[400094123,1767095433365,-150.0,0.00016918,2]
[400094124,1767095433375,-420.0,0.00016943,2]
[400094125,1767095433384,-420.0,0.00016943,2]
[400094126,1767095433394,-250.0,0.00016973,2]
[400094127,1767095433405,-250.0,0.00016973,2]
[400094128,1767095433416,-150.0,0.00016986,2]
[400094129,1767095433691,-150.0,0.00016986,2]
[400094130,1767095433711,-150.0,0.00016986,2]
[400094131,1767095433722,-150.0,0.00016986,2]
[400094132,1767095433734,-166.66,0.00016993,2]
[400094133,1767095433744,-175.72231341,0.00016999,2]
[400094134,1767095433754,-4717.0,0.00017,2]
[400094135,1767095433764,-17711.11144496,0.00017,2]
[400094136,1767095433781,-24737.84459333,0.00017,2]
[400094137,1767095433794,-16201.67746108,0.00017,2]
[400094138,1767095433806,-529.82070828,0.00017,2]
[400094139,1767095433818,-540.54142778,0.00017,2]
[400094140,1767095433830,-628.96962952,0.00017,2]
[400094141,1767095433842,-2178.95589453,0.00017,2]
[400094148,1767095438395,-151.0,0.0001603,2]
[400094149,1767095438405,-151.0,0.0001603,2]
[400094150,1767095438416,-1876.00072333,0.00017,2]
[400094151,1767095438432,-392.59463394,0.00017,2]
[400094152,1767095438444,-6173.24549921,0.00017,2]
[400094153,1767095438500,-1000.65745123,0.00017,2]
[400094154,1767095438512,-443.26536606,0.00017,2]
[400094155,1767095438562,-646.48999974,0.00017,2]
[400094184,1767095440396,-375.32230847,0.00017,2]
[400094185,1767095440451,-450.86904189,0.00017,2]
[400094186,1767095440464,-3816.26585088,0.00017,2]
[400094187,1767095440476,-4138.7968325,0.00017,2]
[400094188,1767095440506,-447.1571751,0.00017,2]
[400094189,1767095440519,-351753.63802852,0.00017,2]
[400094190,1767095440531,-360.11324534,0.00017,2]
[400094191,1767095440543,-303.94,0.00017,2]
[400094192,1767095440562,-26584.88014937,0.00017,2]
[400094193,1767095440572,-2300.72071797,0.00017,2]
[400094194,1767095440583,-12971.61034677,0.00017,2]
[400094195,1767095440604,-14363.08807329,0.00017,2]
[400094196,1767095440623,-2334.80356846,0.00017,2]
[400094197,1767095440729,-22.92770114,0.00017,2]
[400094198,1767095440742,-13851.02829593,0.00017,2]
[400094199,1767095440754,-3030.275,0.00017,2]
[400094200,1767095440833,-22989.30025605,0.00017,2]
[400094220,1767095444433,-143606.49566121,0.00017,2]
[400094221,1767095445230,-39684.89639591,0.00017,2]
[400094222,1767095445287,-908.811586,0.00017,2]
[400094223,1767095445394,-6855.90067227,0.00017,2]
[400094237,1767095446409,-983.57476663,0.000169,2]
[400094238,1767095446421,-21034.78919208,0.00017,2]
[400094239,1767095446459,-73.76008285,0.00017,2]
[400094240,1767095446475,-911.3022698,0.00017,2]
[400094243,1767095783779,418.46,9.006e-05,2]
[400094244,1767095784018,418.46,9.48e-05,2]
[400094245,1767095784448,418.46,9.954e-05,2]
[400094246,1767095784689,418.46,0.00010428,2]
[400094247,1767095784856,418.46,0.00010902,2]
[400094248,1767095785052,418.46,0.00011375,2]
[400094249,1767095785447,418.46,0.00011849,2]
[400094250,1767095785890,418.46,0.00012323,2]
[400094251,1767095792091,-418.46,0.00012797,2]
[400094252,1767095793923,-163.77126412,0.00013271,2]
[400094253,1767095797127,-168.15,0.00013271,2]
[400094254,1767096007680,-86.53873588,0.00013271,2]
[400094255,1767096007704,-212.74754095,0.00013271,2]
[400094256,1767096037736,-166.66,0.00013271,2]
[400094257,1767096368274,-7.36273095,0.00013271,2]
[400094258,1767096368298,-194.50040824,0.00013508,2]
[400094259,1767096428132,-40.85737331,0.00013508,2]
[400094260,1767096428157,-164.00903292,0.00013745,2]
[400094261,1767096428180,-418.46,0.00013745,2]
[400094262,1767096428203,-418.46,0.00014219,2]
[400094263,1767096428224,-220.26534325,0.00014599,2]
[400094264,1767096436137,-43.7270337,0.00014599,2]
[400094265,1767096436159,-131.57810318,0.00014599,2]
[400094266,1767096444086,-118.42189682,0.00014599,2]
[400094267,1767096444110,-418.46,0.00014693,2]
[400094268,1767096444133,-201.86313919,0.00014859,2]
[400094269,1767096444155,-418.46,0.00015167,2]
[400094270,1767096444178,-150.0,0.00015288,2]
[400094271,1767096444200,-150.0,0.00015288,2]
[400094272,1767096444222,-150.0,0.00015288,2]
[400094273,1767096444244,-166.66,0.00015355,2]
[400094274,1767096444264,-418.46,0.00015641,2]
[400094275,1767096444290,-166.66,0.00015679,2]
[400094276,1767096444311,-1852.42,0.00015835,2]
[400094277,1767096444333,-166.66,0.00016002,2]
[400094278,1767096444353,-151.0,0.00016039,2]
[400094279,1767096444374,-151.0,0.00016039,2]
[400094280,1767096444396,-151.0,0.00016062,2]
[400094281,1767096444416,-151.0,0.00016062,2]
[400094282,1767096444437,-180.0,0.00016099,2]
[400094283,1767096444458,-3768.99299722,0.000161,5]
[400094295,1767096631485,-425.0,0.000157,5]
[400094296,1767096631496,-633.65,0.00015929,2]
[400094297,1767096631506,-418.46,0.00016115,2]
[400094298,1767096631515,-96.67266955,0.00016208,2]
[400094299,1767096631536,-54.32733045,0.00016208,2]
[400094300,1767096631546,-151.0,0.00016211,2]
[400094301,1767096631556,-151.0,0.00016211,2]
[400094302,1767096631566,-166.66,0.00016325,2]
[400094303,1767096631576,-418.46,0.00016589,2]
[400094304,1767096631586,-166.66,0.00016648,2]
[400094305,1767096631595,-150.0,0.00016722,2]
[400094306,1767096631605,-150.0,0.00016722,2]
[400094307,1767096631615,-150.0,0.00016722,2]
[400094308,1767096631625,-150.0,0.00016722,2]
[400094309,1767096631636,-150.0,0.00016722,2]
[400094310,1767096631645,-500.0,0.00016722,2]
[400094311,1767096631655,-150.0,0.00016722,2]
[400094312,1767096631665,-157.57610681,0.00016722,2]
[400094313,1767096631675,-150.0,0.00016726,2]
[400094314,1767096631685,-150.0,0.00016777,2]
[400094315,1767096631695,-150.0,0.00016777,2]
[400094317,1767096631707,-150.0,0.00016777,2]
[400094319,1767096631717,-150.0,0.00016777,2]
[400094320,1767096631727,-500.0,0.00016777,2]
[400094321,1767096631737,-300.0,0.00016798,2]
[400094322,1767096631748,-1200.0,0.00016799,2]
[400094324,1767096631758,-125.41474908,0.00016799,2]
[400094326,1767096631771,-49.58525092,0.00016799,2]
[400094327,1767096631781,-3114.28317956,0.000168,2]
[400094329,1767096631791,-4360.5473738,0.000168,2]
[400094331,1767096631800,-242.72588,0.0001683,2]
[400094333,1767096631810,-242.72589,0.0001683,2]
[400094335,1767096631819,-238.31892592,0.0001683,2]
[400094337,1767096631831,-4.40696408,0.0001683,2]
[400094338,1767096631842,-150.0,0.00016832,2]
[400094339,1767096631852,-291.53661505,0.00016832,2]
[400094340,1767096631861,-740.82865752,0.00016845,2]
[400094341,1767096631871,-202.02456023,0.00016876,2]
[400094342,1767096631880,-212.75,0.00016876,2]
[400094343,1767096631890,-500.0,0.00016899,2]
[400094344,1767096631899,-166.14220004,0.00016899,2]
[400094345,1767096631909,-382.37283689,0.00016899,2]
[400094346,1767096631919,-219.0,0.00016899,2]
[400094347,1767096631928,-169.74465732,0.000169,2]
[400094348,1767096631938,-7197.6755,0.000169,2]
[400094349,1767096631947,-660.76530493,0.000169,2]
[400094356,1767096637738,-151.0,0.0001624,2]
[400094358,1767096637748,-151.0,0.0001624,2]
[400094359,1767096637758,-33.00823583,0.000169,2]
[400094364,1767096637917,-140.22787722,0.000169,2]
[400094369,1767096639627,-362.5,0.000169,2]
[400094370,1767096639682,-5915.79999996,0.000169,2]
[400094371,1767096639694,-500.0,0.000169,2]
[400094372,1767096639736,-5070.0,0.000169,2]
[400094373,1767096639855,-327.53205032,0.000169,2]
[400094374,1767096640017,-40932.31453005,0.000169,2]
[400094375,1767096640032,-525.16036174,0.000169,2]
[400094390,1767096643267,-77935.17446178,0.000169,2]
[400094392,1767096644055,-218251.20105397,0.000169,2]
[400094393,1767096644163,-24120.50890138,0.000169,2]
[400094414,1767096645494,-23631.75523459,0.000169,2]
[400094427,1767096831974,180.07,0.00024817,120]
[400094428,1767096938817,285.8488,0.00030137,120]
[400094429,1767097177144,-173.34,0.00012942,2]
[400094431,1767097297700,177.64023321,0.00030136,120]
[400094435,1767097636140,-0.44,0.00012942,2]
[400094436,1767097636163,-363.48,0.00013699,2]
[400094437,1767097636187,-209.84093336,0.00014236,2]
[400094438,1767097636208,-288.9145481,0.00014236,2]
[400094439,1767097636231,-150.0,0.00015781,2]
[400094440,1767097636254,-150.0,0.00015781,2]
[400094441,1767097636277,-299.2863,0.000159,2]
[400094442,1767097636301,-470.43,0.00015901,2]
[400094443,1767097636322,-999.0,0.00016148,3]
[400094444,1767097636345,-151.0,0.00016192,2]
[400094445,1767097636370,-151.0,0.00016192,2]
[400094446,1767097636398,-200.0,0.00016211,2]
[400094447,1767097636422,-1718.26,0.00016385,2]
[400094448,1767097636445,-200.0,0.0001639,2]
[400094449,1767097636470,-1489.410203,0.00016488,2]
[400094450,1767097636493,-32.67694613,0.00016544,2]
[400094451,1767097645084,-147.39305387,0.00016544,2]
[400094452,1767097645112,-167.25,0.00016572,2]
[400094453,1767097645134,-1043.35664251,0.0001666,2]
[400094467,1767097831646,-271.90586894,0.00015999,2]
[400094468,1767097831760,-28.09413106,0.00015999,2]
[400094469,1767097831771,-300.0,0.00015999,2]
[400094470,1767097831781,-12727.95940748,0.00016,4]
[400094471,1767097831816,-6142.23920791,0.00016,4]
[400094472,1767097831826,-151.0,0.00016296,2]
[400094473,1767097831835,-151.0,0.00016296,2]
[400094474,1767097831844,-151.0,0.00016297,2]
[400094475,1767097831853,-151.0,0.00016297,2]
[400094476,1767097831863,-3240.0,0.00016372,2]
[400094477,1767097831875,-1968.62175319,0.0001666,2]
[400094478,1767097831884,-1130.6759,0.000168,2]
[400094479,1767097831893,-169.90812,0.0001683,2]
[400094480,1767097831904,-169.90812,0.0001683,2]
[400094481,1767097831913,-169.90812,0.0001683,2]
[400094482,1767097831922,-661.7885025,0.00016836,2]
[400094483,1767097831931,-169.90813,0.0001685,2]
[400094485,1767097831940,-169.90812,0.0001688,2]
[400094487,1767097831950,-3229.1002065,0.00016882,2]
[400094489,1767097831959,-500.0,0.00016884,2]
[400094491,1767097831969,-500.0,0.00016884,2]
[400094493,1767097831979,-13302.4517683,0.00016894,2]
[400094495,1767097831987,-1398.552982,0.00016894,2]
[400094497,1767097831996,-3036.2717032,0.00016896,2]
[400094499,1767097832006,-169.74465732,0.000169,2]
[400094501,1767097832016,-4472.32853649,0.000169,2]
[400094503,1767097832026,-648.22507533,0.000169,2]
[400094505,1767097832035,-189.99484662,0.000169,2]
[400094507,1767097832045,-1252.41853617,0.000169,2]
[400094509,1767097832054,-169.90812,0.0001691,2]
[400094511,1767097832064,-169.90812,0.0001693,2]
[400094513,1767097832073,-166.66,0.00016972,2]
[400094515,1767097832084,-151.0,0.0001699,2]
[400094517,1767097832093,-151.0,0.0001699,2]
[400094519,1767097832102,-283.67,0.00016999,2]
[400094521,1767097832112,-500.0,0.00016999,2]
[400094523,1767097832122,-431.42542105,0.00016999,2]
[400094525,1767097832132,-500.0,0.00016999,2]
[400094527,1767097832141,-375.32466654,0.00016999,2]
[400094529,1767097832151,-500.0,0.00016999,2]
[400094531,1767097832160,-458.88048002,0.00016999,2]
[400094533,1767097832170,-500.0,0.00016999,2]
[400094535,1767097832180,-414.62671872,0.00016999,2]
[400094537,1767097832190,-500.0,0.00016999,2]
[400094539,1767097832465,-309.2500002,0.00016999,2]
[400094540,1767097832476,-218.60968798,0.00016999,2]
[400094541,1767097832487,-502.35740859,0.00016999,2]
[400094542,1767097832498,-607.25892571,0.00016999,2]
[400094543,1767097832507,-500.0,0.00016999,2]
[400094544,1767097832517,-500.0,0.00016999,2]
[400094545,1767097832528,-197.85943368,0.00016999,2]
[400094546,1767097832539,-3767.0,0.00017,2]
[400094547,1767097832559,-63227.14292719,0.00017,2]
[400094548,1767097832572,-62396.39354159,0.00017,2]
[400094549,1767097832584,-84481.46923687,0.00017,2]
[400094550,1767097832597,-78100.16197437,0.00017,2]
[400094726,1767097843284,-151.0,0.00016297,2]
[400094727,1767097843295,-151.0,0.00016297,2]
[400094728,1767097843305,-46102.88763197,0.00017,2]
[400094729,1767097843322,-507.59994,0.00017,2]
[400094730,1767097844035,-5367.28933988,0.00017,2]
[400094750,1767097845755,-1485.72273794,0.00017,2]
[400094751,1767097845767,-296.79337137,0.00017,2]
[400094794,1767098634307,295.74,8.013e-05,2]
[400094795,1767098634503,295.74,8.434e-05,2]
[400094796,1767098634727,295.74,8.856e-05,2]
[400094797,1767098634930,295.74,9.278e-05,2]
[400094798,1767098635144,295.74,9.7e-05,2]
[400094799,1767098635363,295.74,0.00010121,2]
[400094800,1767098635669,295.74,0.00010543,2]
[400094801,1767098635758,295.74,0.00010965,2]
[400094802,1767098635951,295.74,0.00011386,2]
[400094803,1767098636155,295.74,0.00011808,2]
[400094804,1767098636357,295.74,0.0001223,2]
[400094805,1767098636583,295.74,0.00012652,2]
[400094806,1767098647151,-160.71823073,0.00013073,2]
[400094810,1767098713035,176.30063355,0.00012,2]
[400094811,1767098840130,-135.02176927,0.00013073,2]
[400094812,1767098840153,-295.74,0.00013495,2]
[400094813,1767098840173,-2233.25132313,0.00013748,2]
[400094814,1767098840194,-600.0,0.00013917,2]
[400094815,1767098840214,-226.54014837,0.00013917,2]
[400094816,1767098840237,-295.74,0.00013917,2]
[400094817,1767098840264,-295.74,0.00014339,2]
[400094818,1767098840285,-300.0,0.0001438,2]
[400094819,1767098840305,-600.0,0.00014381,2]
[400094820,1767098840325,-2500.0,0.00014381,2]
[400094821,1767098840346,-381.1584968,0.00014381,2]
[400094822,1767098840368,-295.74,0.0001476,2]
[400094823,1767098840389,-295.74,0.00015182,2]
[400094824,1767098840410,-150.0,0.00015288,2]
[400094825,1767098840430,-33.98941435,0.00015437,2]
[400094826,1767098845099,-166.72428565,0.00015437,2]
[400094827,1767098845123,-166.66,0.00015537,2]
[400094828,1767098845147,-295.74,0.00015604,2]
[400094829,1767098845169,-300.0,0.00015748,2]
[400094830,1767098845191,-166.66,0.00015864,2]
[400094831,1767098845214,-295.74,0.00016025,2]
[400094832,1767098845236,-271.52033492,0.00016065,2]
[400094843,1767099031863,-500.0,0.00015984,2]
[400094844,1767099031877,-298.1025574,0.00015984,2]
[400094845,1767099032040,-398.97710426,0.00015984,2]
[400094846,1767099032058,-278.94773434,0.00015984,2]
[400094847,1767099032070,-728.47966508,0.00016065,2]
[400094848,1767099032080,-300.0,0.00016143,2]
[400094849,1767099032092,-263.58,0.00016144,2]
[400094850,1767099032103,-200.0,0.00016144,2]
[400094851,1767099032113,-207.4,0.00016144,2]
[400094852,1767099032123,-215.0738,0.00016144,2]
[400094853,1767099032135,-223.0315306,0.00016144,2]
[400094855,1767099032145,-231.28369723,0.00016144,2]
[400094856,1767099032155,-239.84119403,0.00016144,2]
[400094857,1767099032166,-248.71531821,0.00016144,2]
[400094858,1767099032177,-408.35515062,0.00016144,2]
[400094859,1767099032187,-2065.39652589,0.00016191,2]
[400094860,1767099032200,-270.68127953,0.00016191,2]
[400094861,1767099032210,-35.31872047,0.00016191,2]
[400094862,1767099032223,-131.34127953,0.00016191,2]
[400094863,1767099032233,-151.0,0.00016244,2]
[400094864,1767099032242,-151.0,0.00016244,2]
[400094865,1767099032252,-151.0,0.00016306,2]
[400094866,1767099032262,-151.0,0.00016306,2]
[400094868,1767099032272,-18.60499571,0.00016418,2]
[400094869,1767099032284,-244.97500429,0.00016418,2]
[400094871,1767099032295,-1092.73485779,0.00016438,2]
[400094874,1767099032307,-1257.02204758,0.00016438,2]
[400094876,1767099032319,-413.46309463,0.00016438,2]
[400094877,1767099032329,-166.66,0.00016519,2]
[400094878,1767099032339,-150.0,0.00016593,2]
[400094879,1767099032350,-984.31087659,0.0001666,2]
[400094880,1767099032360,-263.58,0.00016692,2]
[400094881,1767099032370,-151.0,0.00016784,2]
[400094882,1767099032379,-1000.0,0.00016793,2]
[400094883,1767099032389,-169.90812,0.0001683,2]
[400094884,1767099032399,-169.90812,0.0001683,2]
[400094885,1767099032414,-166.66,0.00016846,2]
[400094886,1767099032424,-1000.0,0.000169,2]
[400094887,1767099032434,-169.74465732,0.000169,2]
[400094888,1767099032444,-5171.27147655,0.000169,2]
[400094889,1767099032455,-3585.69303644,0.000169,2]
[400094890,1767099032465,-1068.89684061,0.000169,2]
[400094891,1767099032475,-2757.4317018,0.00016925,2]
[400094892,1767099032487,-700.8584395,0.00016925,2]
[400094893,1767099032497,-263.58,0.00016966,2]
[400094894,1767099032508,-40.9255337,0.00016987,2]
[400094895,1767099037928,-459.0744663,0.00016987,2]
[400094896,1767099037940,-613.32847388,0.00016987,2]
[400094897,1767099037983,-302.69033,0.00016987,2]
[400095086,1767099039904,-9634.80969665,0.00016987,2]
[400095088,1767099039916,-573.63214,0.00016987,2]
[400095090,1767099039928,-5200.68821485,0.00016987,2]
[400095093,1767099039940,-1269.9727187,0.00016987,2]
[400095107,1767099040066,-5606.6598824,0.00016987,2]
[400095109,1767099040078,-1718.44863131,0.00016987,2]
[400095112,1767099040093,-2786.0751796,0.00016987,2]
[400095115,1767099040121,-7634.65936529,0.00016987,2]
[400095117,1767099040131,-500.0,0.0001699,2]
[400095119,1767099040141,-553.64373807,0.0001699,2]
[400095121,1767099040151,-500.0,0.0001699,2]
[400095123,1767099040161,-151.0,0.0001699,2]
[400095126,1767099040174,-500.0,0.0001699,2]
[400095128,1767099040183,-151.0,0.0001699,2]
[400095130,1767099040193,-500.0,0.0001699,2]
[400095132,1767099040202,-151.0,0.0001699,2]
[400095134,1767099040212,-500.0,0.0001699,2]
[400095136,1767099040226,-500.0,0.0001699,2]
[400095138,1767099040235,-500.0,0.0001699,2]
[400095140,1767099040245,-500.0,0.0001699,2]
[400095142,1767099040254,-522.29789911,0.0001699,2]
[400095144,1767099040264,-500.0,0.0001699,2]
[400095146,1767099040274,-500.0,0.0001699,2]
[400095148,1767099040283,-500.0,0.0001699,2]
[400095150,1767099040292,-298.30089551,0.0001699,2]
[400095152,1767099040302,-200.0,0.0001699,2]
[400095154,1767099040311,-1000.0,0.0001699,2]
[400095156,1767099040323,-1000.0,0.0001699,2]
[400095158,1767099040343,-1000.0,0.0001699,2]
[400095160,1767099040352,-1000.0,0.0001699,2]
[400095162,1767099040361,-1000.0,0.0001699,2]
[400095164,1767099040374,-620.0,0.0001699,2]
[400095166,1767099040383,-2117.2576276,0.00016991,2]
[400095168,1767099040393,-828.6508581,0.00016991,2]
[400095170,1767099040404,-502.45296009,0.00016999,2]
[400095172,1767099040414,-301.99779473,0.00016999,2]
[400095174,1767099040425,-3016.0,0.00017,2]
[400095176,1767099040434,-3316.11476248,0.00017,2]
[400095272,1767099045419,-184701.2208,0.00016694,2]
[400095273,1767099045429,-61503.52475146,0.00017,2]
[400095274,1767099045439,-193.57357588,0.00017,2]
[400095275,1767099045449,-503.9879154,0.00017,2]
[400095276,1767099045459,-242357.67116609,0.00017,2]
[400095277,1767099045471,-1764.46877469,0.00017,2]
[400095278,1767099045845,-1000.0,0.00017,2]
[400095279,1767099046009,-553.29706463,0.00017,2]
[400095280,1767099046022,-1159.3,0.00017,2]
[400095281,1767099046034,-400.0,0.00017,2]
[400095282,1767099046046,-22220.93962766,0.00017,2]
[400095283,1767099046174,-1866.90005,0.00017,2]
[400095284,1767099046187,-531.774,0.00017,2]
[400095285,1767099046199,-22985.00216024,0.00017,2]
[400095286,1767099046210,-899.99,0.00017,2]
[400095287,1767099046288,-353426.1755764,0.00017,2]
[400095288,1767099046300,-2286.53423061,0.00017,2]
[400095289,1767099046311,-2045.39356299,0.00017,2]
[400095290,1767099046323,-834.90360017,0.00017,2]
[400095291,1767099046335,-1218.10437464,0.00017,2]
[400095298,1767100027116,-151.0,0.00016272,2]
[400095299,1767100027137,-151.0,0.00016272,2]
[400095300,1767100027160,-151.0,0.00016273,2]
[400095301,1767100027182,-151.0,0.00016273,2]
[400095302,1767100027206,-287.0,0.00016279,2]
[400095303,1767100027227,-201.86313919,0.00016281,2]
[400095304,1767100027248,-209.68,0.000163,2]
[400095305,1767100027269,-200.0,0.00016444,2]
[400095306,1767100027289,-999.0,0.00016548,3]
[400095307,1767100027312,-492.1554383,0.0001666,2]
[400095308,1767100027334,-300.0,0.00016899,2]
[400095309,1767100027356,-300.0,0.00016899,2]
[400095310,1767100027381,-169.74465732,0.000169,2]
[400095311,1767100027403,-1891.598,0.000169,2]
[400095312,1767100027428,-255.07,0.000169,2]
[400095313,1767100027453,-3126.75595241,0.000169,2]
[400095314,1767100036212,-100.36778044,0.000169,2]
[400095315,1767100036235,-4251.80414331,0.000169,2]
[400095326,1767100232048,-151.0,0.00016305,2]
[400095327,1767100232068,-151.0,0.00016305,2]
[400095328,1767100232084,-151.0,0.00016324,2]
[400095329,1767100232094,-151.0,0.00016324,2]
[400095330,1767100232105,-246.07771915,0.0001666,2]
[400095331,1767100232115,-612.86786876,0.000169,2]
[400095332,1767100232125,-322.6107,0.00016929,2]
[400095333,1767100232135,-300.0,0.00016938,2]
[400095334,1767100232144,-208.0,0.00016938,2]
[400095335,1767100232154,-87503.7543066,0.00016939,2]
[400095336,1767100232164,-160.7674328,0.00016939,2]
[400095337,1767100232173,-500.0,0.00016999,2]
[400095338,1767100232183,-500.0,0.00016999,2]
[400095339,1767100232193,-501.07050403,0.00016999,2]
[400095341,1767100232203,-3354.0,0.00017,2]
[400095343,1767100232212,-730999.17459654,0.00017,2]
[400095346,1767100232225,-5104.95768185,0.00017,2]
[400095348,1767100232236,-2202.40451479,0.00017,2]
[400095351,1767100232254,-4751.0,0.00017,2]